[Event "December 5 Late 2023"]
[Site "https://www.chess.com"]
[Date "2023.12.05"]
[Round "11"]
[White "Winkels, Marcel"]
[Black "th3d4rkness"]
[Result "0-1"]
[Board "103"]
[TimeControl "180+1"]
[WhiteFideId "1003887"]
[WhiteElo "2001"]
[BlackElo "2135"]
[WhiteTeam "NED"]
[WhiteClock "0:00:00"]
[BlackClock "0:00:06"]

1. e4 {[%clk 0:03:00]}  c5 {[%clk 0:02:59]} 2. Nf3 {[%clk 0:02:59]}  Nc6 {[%clk 0:02:59]} 3. d4 {[%clk 0:03:00]}  cxd4 {[%clk 0:02:59]} 4. Nxd4 {[%clk 0:03:00]}  Nf6 {[%clk 0:02:59]} 5. Nc3 {[%clk 0:02:59]}  e5 {[%clk 0:02:59]} 6. Ndb5 {[%clk 0:02:59]}  d6 {[%clk 0:02:59]} 7. Bg5 {[%clk 0:02:57]}  a6 {[%clk 0:02:59]} 8. Na3 {[%clk 0:02:58]}  b5 {[%clk 0:02:59]} 9. Nab1 {[%clk 0:02:57]}  Be6 {[%clk 0:02:49]} 10. a4 {[%clk 0:02:47]}  b4 {[%clk 0:02:48]} 11. Nd5 {[%clk 0:02:46]}  Bxd5 {[%clk 0:02:48]} 12. exd5 {[%clk 0:02:46]}  Ne7 {[%clk 0:02:42]} 13. Bxf6 {[%clk 0:02:42]}  gxf6 {[%clk 0:02:41]} 14. Be2 {[%clk 0:02:40]}  Bg7 {[%clk 0:02:36]} 15. O-O {[%clk 0:02:35]}  O-O {[%clk 0:02:35]} 16. Nd2 {[%clk 0:02:33]}  f5 {[%clk 0:02:36]} 17. a5 {[%clk 0:02:19]}  Qc7 {[%clk 0:02:14]} 18. Nc4 {[%clk 0:02:18]}  Rfd8 {[%clk 0:02:04]} 19. Nb6 {[%clk 0:02:16]}  Ra7 {[%clk 0:02:00]} 20. Qd2 {[%clk 0:02:09]}  Qc5 {[%clk 0:01:56]} 21. Rfd1 {[%clk 0:02:07]}  e4 {[%clk 0:01:55]} 22. c3 {[%clk 0:02:00]}  bxc3 {[%clk 0:01:54]} 23. Qg5 {[%clk 0:01:42]}  cxb2 {[%clk 0:01:48]} 24. Rab1 {[%clk 0:01:39]}  Qc2 {[%clk 0:01:35]} 25. Bc4 {[%clk 0:01:27]}  Re8 {[%clk 0:01:27]} 26. h4 {[%clk 0:01:25]}  h6 {[%clk 0:01:21]} 27. Qg3 {[%clk 0:01:21]}  Rd8 {[%clk 0:01:08]} 28. Qf4 {[%clk 0:01:12]}  Kh7 {[%clk 0:01:06]} 29. Qd2 {[%clk 0:01:00]}  Qxd2 {[%clk 0:00:59]} 30. Rxd2 {[%clk 0:01:00]}  Ng6 {[%clk 0:00:55]} 31. h5 {[%clk 0:00:55]}  Ne5 {[%clk 0:00:54]} 32. Bf1 {[%clk 0:00:53]}  Nd7 {[%clk 0:00:48]} 33. Nc4 {[%clk 0:00:43]}  Nc5 {[%clk 0:00:48]} 34. Rc2 {[%clk 0:00:38]}  Rb7 {[%clk 0:00:27]} 35. Nxd6 {[%clk 0:00:30]}  Rxd6 {[%clk 0:00:25]} 36. Rxc5 {[%clk 0:00:29]}  Rb3 {[%clk 0:00:23]} 37. Rc2 {[%clk 0:00:21]}  Rxd5 {[%clk 0:00:22]} 38. Bc4 {[%clk 0:00:20]}  Rc5 {[%clk 0:00:14]} 39. Bxb3 {[%clk 0:00:19]}  Rxa5 {[%clk 0:00:12]} 40. Bc4 {[%clk 0:00:17]}  Ra1 {[%clk 0:00:11]} 41. Kh2 {[%clk 0:00:08]}  Rxb1 {[%clk 0:00:10]} 42. Ba2 {[%clk 0:00:09]}  Ra1 {[%clk 0:00:09]} 43. Bxf7 {[%clk 0:00:02]}  b1=Q {[%clk 0:00:05]} 44. Bg6+ {[%clk 0:00:01]}  Kg8 {[%clk 0:00:05]} 45. Rc8+ {[%clk 0:00:00]}  Bf8 {[%clk 0:00:06]} 0-1

[Event "December 5 Late 2023"]
[Site "https://www.chess.com"]
[Date "2023.12.05"]
[Round "11"]
[White "Cornelison, Paul"]
[Black "Seletsky, Grigory"]
[Result "0-1"]
[Board "104"]
[TimeControl "180+1"]
[WhiteFideId "2004186"]
[BlackFideId "14112191"]
[WhiteElo "1903"]
[BlackElo "2483"]
[WhiteTeam "USA"]
[BlackTeam "UKR"]
[WhiteClock "0:00:00"]
[BlackClock "0:00:09"]

1. e4 {[%clk 0:02:58]}  e6 {[%clk 0:02:59]} 2. d4 {[%clk 0:02:58]}  d5 {[%clk 0:02:59]} 3. Nc3 {[%clk 0:02:58]}  Nc6 {[%clk 0:02:58]} 4. e5 {[%clk 0:02:55]}  Nge7 {[%clk 0:02:57]} 5. Qg4 {[%clk 0:02:53]}  Nf5 {[%clk 0:02:56]} 6. Nf3 {[%clk 0:02:51]}  h5 {[%clk 0:02:56]} 7. Qf4 {[%clk 0:02:40]}  g6 {[%clk 0:02:47]} 8. g4 {[%clk 0:02:30]}  Bh6 {[%clk 0:02:41]} 9. g5 {[%clk 0:02:30]}  Bf8 {[%clk 0:02:32]} 10. Bd3 {[%clk 0:02:29]}  Be7 {[%clk 0:02:28]} 11. h4 {[%clk 0:02:13]}  Nb4 {[%clk 0:02:27]} 12. Bxf5 {[%clk 0:02:11]}  exf5 {[%clk 0:02:23]} 13. Qd2 {[%clk 0:02:08]}  Be6 {[%clk 0:02:21]} 14. a3 {[%clk 0:02:07]}  Nc6 {[%clk 0:02:18]} 15. Qe2 {[%clk 0:01:59]}  O-O {[%clk 0:02:16]} 16. Bf4 {[%clk 0:01:37]}  Na5 {[%clk 0:02:15]} 17. Nd2 {[%clk 0:01:35]}  b6 {[%clk 0:02:14]} 18. b4 {[%clk 0:01:34]}  Nc6 {[%clk 0:01:55]} 19. Nb3 {[%clk 0:01:32]}  a5 {[%clk 0:01:54]} 20. b5 {[%clk 0:01:06]}  a4 {[%clk 0:01:54]} 21. bxc6 {[%clk 0:01:02]}  axb3 {[%clk 0:01:53]} 22. a4 {[%clk 0:00:56]}  bxc2 {[%clk 0:01:34]} 23. Qxc2 {[%clk 0:00:35]}  Bb4 {[%clk 0:01:29]} 24. O-O {[%clk 0:00:35]}  Bxc3 {[%clk 0:01:22]} 25. Qxc3 {[%clk 0:00:36]}  Ra5 {[%clk 0:01:17]} 26. Bd2 {[%clk 0:00:29]}  Qa8 {[%clk 0:01:17]} 27. Qb3 {[%clk 0:00:20]}  Ra6 {[%clk 0:01:14]} 28. Rfc1 {[%clk 0:00:20]}  Rb8 {[%clk 0:01:11]} 29. Qb5 {[%clk 0:00:20]}  Kg7 {[%clk 0:00:58]} 30. Kg2 {[%clk 0:00:20]}  f4 {[%clk 0:00:43]} 31. Bb4 {[%clk 0:00:14]}  f3+ {[%clk 0:00:26]} 32. Kxf3 {[%clk 0:00:13]}  Re8 {[%clk 0:00:22]} 33. Rc3 {[%clk 0:00:09]}  Qc8 {[%clk 0:00:22]} 34. Kg3 {[%clk 0:00:08]}  Bf5 {[%clk 0:00:18]} 35. Qe2 {[%clk 0:00:05]}  Qe6 {[%clk 0:00:14]} 36. f3 {[%clk 0:00:05]}  Rea8 {[%clk 0:00:14]} 37. Rca3 {[%clk 0:00:05]}  Qe8 {[%clk 0:00:11]} 38. Qb5 {[%clk 0:00:00]}  Be6 {[%clk 0:00:09]} 0-1

[Event "December 5 Late 2023"]
[Site "https://www.chess.com"]
[Date "2023.12.05"]
[Round "11"]
[White "Bazzano, Sebastian"]
[Black "Burke, Paul"]
[Result "1-0"]
[Board "105"]
[TimeControl "180+1"]
[WhiteFideId "104566"]
[BlackFideId "2605767"]
[WhiteElo "2222"]
[BlackElo "1811"]
[WhiteTeam "ARG"]
[BlackTeam "CAN"]
[WhiteClock "0:00:26"]
[BlackClock "0:00:00"]

1. d4 {[%clk 0:02:59]}  Nf6 {[%clk 0:02:58]} 2. Bf4 {[%clk 0:02:58]}  d6 {[%clk 0:02:57]} 3. Nc3 {[%clk 0:02:58]}  g6 {[%clk 0:02:58]} 4. e4 {[%clk 0:02:58]}  Bg7 {[%clk 0:02:58]} 5. Qd2 {[%clk 0:02:58]}  h6 {[%clk 0:02:57]} 6. h4 {[%clk 0:02:57]}  c6 {[%clk 0:02:55]} 7. O-O-O {[%clk 0:02:57]}  Nbd7 {[%clk 0:02:55]} 8. Nf3 {[%clk 0:02:56]}  Qa5 {[%clk 0:02:55]} 9. Kb1 {[%clk 0:02:52]}  b5 {[%clk 0:02:55]} 10. Bd3 {[%clk 0:02:52]}  b4 {[%clk 0:02:52]} 11. Ne2 {[%clk 0:02:51]}  Ng4 {[%clk 0:02:38]} 12. Rhf1 {[%clk 0:02:39]}  O-O {[%clk 0:02:37]} 13. Nh2 {[%clk 0:02:20]}  Nxh2 {[%clk 0:02:26]} 14. Bxh2 {[%clk 0:02:21]}  e5 {[%clk 0:02:26]} 15. dxe5 {[%clk 0:02:09]}  Nxe5 {[%clk 0:02:25]} 16. Nc1 {[%clk 0:01:43]}  Be6 {[%clk 0:02:17]} 17. Be2 {[%clk 0:01:40]}  Nc4 {[%clk 0:02:05]} 18. Bxc4 {[%clk 0:01:39]}  Bxc4 {[%clk 0:02:04]} 19. Rfe1 {[%clk 0:01:40]}  d5 {[%clk 0:01:57]} 20. e5 {[%clk 0:01:38]}  Rad8 {[%clk 0:01:41]} 21. f4 {[%clk 0:01:32]}  c5 {[%clk 0:01:33]} 22. h5 {[%clk 0:01:30]}  Qb6 {[%clk 0:01:10]} 23. g4 {[%clk 0:01:14]}  a5 {[%clk 0:01:08]} 24. g5 {[%clk 0:01:04]}  a4 {[%clk 0:01:03]} 25. Rg1 {[%clk 0:00:43]}  b3 {[%clk 0:00:52]} 26. cxb3 {[%clk 0:00:42]}  axb3 {[%clk 0:00:51]} 27. a3 {[%clk 0:00:43]}  d4 {[%clk 0:00:33]} 28. f5 {[%clk 0:00:42]}  hxg5 {[%clk 0:00:19]} 29. Qxg5 {[%clk 0:00:30]}  Bd5 {[%clk 0:00:00]} 30. f6 {[%clk 0:00:26]} 1-0